fUSD/lending_fUSD_20260221
["ID","MTS","AMOUNT","RATE_DAILY","PERIOD"]
[406306340,1771716632699,-500.0,0.00032984,7]
[406306341,1771716632709,-500.0,0.00032984,7]
[406306342,1771716632718,-500.0,0.00032984,7]
[406306343,1771716632728,-588.87608232,0.00032984,7]
[406306344,1771716632737,-500.0,0.00032984,7]
[406306345,1771716632749,-500.0,0.00032984,7]
[406306346,1771716632759,-500.0,0.00032984,7]
[406306347,1771716632770,-500.0,0.00032984,7]
[406306348,1771716632780,-500.0,0.00032984,7]
[406306349,1771716632790,-500.0,0.00032984,7]
[406306350,1771716632799,-500.0,0.00032984,7]
[406306351,1771716632808,-500.0,0.00032984,7]
[406306352,1771716632817,-500.0,0.00032984,7]
[406306353,1771716632826,-500.0,0.00032984,7]
[406306354,1771716632836,-500.0,0.00032984,7]
[406306355,1771716632845,-500.0,0.00032984,7]
[406306356,1771716632854,-588.87608232,0.00032984,7]
[406306357,1771716632863,-500.0,0.00032984,7]
[406306358,1771716632872,-500.0,0.00032984,7]
[406306359,1771716632881,-500.0,0.00032984,7]
[406306360,1771716632890,-500.0,0.00032984,7]
[406306361,1771716632899,-500.0,0.00032984,7]
[406306362,1771716632908,-500.0,0.00032984,7]
[406306363,1771716632918,-500.0,0.00032984,7]
[406306364,1771716632927,-423.3143811,0.00032984,7]
[406306365,1771716632936,-500.0,0.00032984,7]
[406306366,1771716632946,-500.0,0.00032984,7]
[406306367,1771716632958,-500.0,0.00032984,7]
[406306368,1771716632969,-588.87608232,0.00032984,7]
[406306369,1771716632979,-610.28975804,0.00032984,7]
[406306370,1771716632991,-610.28975804,0.00032984,7]
[406306371,1771716633003,-610.28975804,0.00032984,7]
[406306372,1771716633015,-610.28975804,0.00032984,7]
[406306373,1771716633026,-610.28975804,0.00032984,7]
[406306374,1771716633037,-610.28975804,0.00032984,7]
[406306375,1771716633049,-610.28975804,0.00032984,7]
[406306376,1771716633060,-610.28975804,0.00032984,7]
[406306377,1771716633070,-610.28975804,0.00032984,7]
[406306378,1771716633081,-500.0,0.00032984,7]
[406306379,1771716633091,-500.0,0.00032984,7]
[406306380,1771716633100,-500.0,0.00032984,7]
[406306381,1771716633108,-500.0,0.00032984,7]
[406306382,1771716633117,-500.0,0.00032984,7]
[406306383,1771716633127,-500.0,0.00032984,7]
[406306384,1771716633136,-610.28975804,0.00032984,7]
[406306385,1771716633145,-500.0,0.00032984,7]
[406306386,1771716633154,-300.0,0.00032984,7]
[406306387,1771716633163,-500.0,0.00032984,7]
[406306388,1771716633173,-500.0,0.00032984,7]
[406306389,1771716633186,-500.0,0.00032984,7]
[406306390,1771716633195,-500.0,0.00032984,7]
[406306391,1771716633204,-500.0,0.00032984,7]
[406306392,1771716633214,-1053.31491572,0.00032984,7]
[406306393,1771716633224,-4369.61761166,0.00032985,2]
[406306394,1771716633236,-8468.8,0.00032985,2]
[406306395,1771716633248,-7382.376725,0.00032985,2]
[406306396,1771716633259,-1247.39962148,0.00032985,2]
[406306397,1771716633281,-463.32343304,0.00032985,2]
[406306398,1771716633292,-258.87161287,0.00032985,2]
[406306399,1771716633311,-1020.18,0.00032985,2]
[406306400,1771716633322,-3710.00000002,0.00032985,2]
[406306402,1771716638126,-292.43601662,0.00032884,2]
[406306584,1771716640213,-618.0,0.00026459,2]
[406306586,1771716640223,-1425.25,0.00032884,2]
[406306602,1771716644984,-310.63729863,0.00029459,2]
[406306603,1771716645106,-307.36270137,0.00029459,2]
[406306604,1771716645115,-618.0,0.00032459,2]
[406306605,1771716645124,-140194.4285758,0.00032884,2]
[406306606,1771716645135,-504961.49118059,0.00032884,2]
[406306607,1771716645146,-823.67837929,0.00032884,2]
[406306608,1771716645280,-595.27045468,0.00032884,2]
[406306609,1771716645345,-372.80333372,0.00032884,2]
[406306611,1771716645356,-3608.27472446,0.00032884,2]
[406306613,1771716645367,-3561.99998,0.00032884,2]
[406306614,1771716645378,-266.40447413,0.00032884,2]
[406306615,1771716645389,-505.888,0.00032884,2]
[406306619,1771716645989,-983.5,0.00032884,2]
[406306626,1771716646165,-262.6,0.00032884,2]
[406306627,1771716646191,-110955.82334503,0.00032884,2]
[406306628,1771716646205,-35900.49531398,0.00032884,2]
[406306629,1771716646218,-14121.81134099,0.00032884,2]
[406306709,1771717832171,-516.0,0.00016,2]
[406306710,1771717832181,-106.81383944,0.000168,2]
[406306711,1771717832308,-143.18616056,0.000168,2]
[406306712,1771717832318,-1850.28596239,0.000176,2]
[406306713,1771717832328,-250.0,0.000176,2]
[406306714,1771717832337,-198.13924219,0.00018713,2]
[406306715,1771717832347,-150.0,0.000195,2]
[406306716,1771717832357,-300.0,0.00019987,2]
[406306717,1771717832366,-300.0,0.00019987,2]
[406306718,1771717832376,-1200.0,0.00019987,2]
[406306719,1771717832385,-151.0,0.00019988,2]
[406306720,1771717832395,-151.0,0.00019988,2]
[406306721,1771717832404,-151.0,0.00019988,2]
[406306722,1771717832413,-151.0,0.00019988,2]
[406306723,1771717832423,-151.0,0.00019988,2]
[406306724,1771717832432,-151.0,0.00019988,2]
[406306725,1771717832441,-151.0,0.00019988,2]
[406306726,1771717832451,-151.0,0.00019988,2]
[406306727,1771717832460,-151.0,0.00019988,2]
[406306728,1771717832469,-151.0,0.00019988,2]
[406306729,1771717832480,-151.0,0.00019988,2]
[406306730,1771717832490,-663.84,0.0001999,2]
[406306731,1771717832499,-150.0,0.00019999,2]
[406306732,1771717832509,-42610.72682532,0.0002,2]
[406306733,1771717832518,-150.0,0.000201,7]
[406306734,1771717832528,-160.0,0.00023,2]
[406306735,1771717832537,-250.0,0.00023255,2]
[406306736,1771717832547,-202.985858,0.00024134,30]
[406306737,1771717832555,-173.74378417,0.00024485,2]
[406306738,1771717832565,-607.0,0.00025319,2]
[406306739,1771717832574,-1338.0,0.00025319,2]
[406306740,1771717832583,-1274.0,0.00025319,2]
[406306741,1771717832592,-174.2,0.00025404,2]
[406306742,1771717832602,-207.867756,0.00026815,30]
[406306743,1771717832611,-1506.09,0.00028144,2]
[406306744,1771717832621,-245.93,0.00028236,2]
[406306745,1771717832630,-2000.0,0.00030137,2]
[406306746,1771717832640,-256.58705035,0.00030448,120]
[406306747,1771717832649,-246.06128184,0.00030448,120]
[406306748,1771717832658,-151.0,0.00030682,7]
[406306749,1771717832667,-2000.0,0.00030685,2]
[406306750,1771717832677,-1000.0,0.00030746,20]
[406306751,1771717832686,-816.264,0.000308,27]
[406306752,1771717832701,-159.37102116,0.000308,27]
[406306753,1771717832711,-200.0,0.00031078,2]
[406306754,1771717832721,-2000.0,0.000312,2]
[406306755,1771717832730,-2000.0,0.00031233,2]
[406306756,1771717832740,-204.0,0.000315,120]
[406306757,1771717832750,-200.0,0.00031521,2]
[406306758,1771717832759,-245.93,0.00031661,2]
[406306759,1771717832768,-2000.0,0.00031781,2]
[406306760,1771717832778,-500.0,0.00031781,2]
[406306761,1771717832787,-166.7,0.00031953,2]
[406306762,1771717832797,-150.0,0.00032,120]
[406306763,1771717832806,-1173.3353058,0.00032,3]
[406306764,1771717832815,-2023.95858652,0.00032329,2]
[406306765,1771717832824,-201.22431385,0.0003239,2]
[406306766,1771717832833,-150.0,0.0003239,2]
[406306767,1771717832842,-500.0,0.0003239,2]
[406306768,1771717832851,-500.0,0.0003239,2]
[406306769,1771717832859,-500.0,0.0003239,2]
[406306770,1771717832868,-500.0,0.0003239,2]
[406306771,1771717832878,-150.0,0.0003239,2]
[406306772,1771717832887,-500.0,0.0003239,2]
[406306773,1771717832895,-150.0,0.0003239,2]
[406306774,1771717832904,-150.0,0.0003239,2]
[406306775,1771717832913,-500.0,0.0003239,2]
[406306776,1771717832922,-500.0,0.0003239,2]
[406306777,1771717832931,-150.0,0.00032445,2]
[406306778,1771717832939,-500.0,0.00032445,2]
[406306779,1771717832948,-500.0,0.00032445,2]
[406306780,1771717832958,-500.0,0.00032445,2]
[406306781,1771717832967,-500.0,0.00032445,2]
[406306782,1771717832976,-150.0,0.00032445,2]
[406306783,1771717832985,-500.0,0.00032445,2]
[406306784,1771717832994,-500.0,0.00032445,2]
[406306785,1771717833003,-500.0,0.00032445,2]
[406306786,1771717833013,-168.0,0.00032496,2]
[406306787,1771717833022,-269.96870004,0.000325,2]
[406306788,1771717833031,-500.0,0.000325,2]
[406306789,1771717833041,-500.0,0.000325,2]
[406306790,1771717833059,-500.0,0.000325,2]
[406306791,1771717833070,-293.75736812,0.000325,2]
[406306792,1771717833080,-488.0,0.000325,2]
[406306793,1771717833090,-500.0,0.000325,2]
[406306794,1771717833100,-500.0,0.000325,2]
[406306795,1771717833110,-500.0,0.000325,2]
[406306796,1771717833119,-467.91494634,0.00032554,2]
[406306797,1771717833129,-500.0,0.00032554,2]
[406306798,1771717833138,-500.0,0.00032554,2]
[406306799,1771717833148,-500.0,0.00032554,2]
[406306800,1771717833157,-500.0,0.00032554,2]
[406306801,1771717833167,-739.0,0.00032558,2]
[406306802,1771717833177,-168.0,0.00032587,2]
[406306803,1771717833187,-500.0,0.00032609,2]
[406306804,1771717833197,-500.0,0.00032609,2]
[406306805,1771717833206,-500.0,0.00032664,2]
[406306806,1771717833216,-500.0,0.00032664,2]
[406306807,1771717833225,-228.0,0.00032719,2]
[406306808,1771717833235,-500.0,0.00032719,2]
[406306809,1771717833244,-168.0,0.00032767,2]
[406306810,1771717833254,-500.0,0.00032774,2]
[406306811,1771717833263,-475.9638,0.00032784,120]
[406306812,1771717833273,-1000.0,0.00032784,2]
[406306813,1771717833282,-170.97074238,0.00032785,2]
[406306814,1771717833291,-500.0,0.000328,2]
[406306815,1771717833301,-1000.0,0.00032824,2]
[406306816,1771717833310,-500.0,0.00032828,2]
[406306817,1771717833320,-168.0,0.00032838,2]
[406306818,1771717833329,-150.0,0.0003284,30]
[406306819,1771717833339,-346.03,0.00032877,2]
[406306820,1771717833348,-160.0,0.00032883,2]
[406306821,1771717833358,-214.0,0.00032883,120]
[406306822,1771717833368,-150.0,0.00032884,20]
[406306823,1771717833378,-168.0,0.00032943,2]
[406306824,1771717833389,-168.0,0.00032971,2]
[406306825,1771717833399,-661.24,0.0003299,3]
[406306826,1771717833409,-233.13055887,0.00032997,14]
[406306827,1771717833419,-500.0,0.00032999,7]
[406306828,1771717833429,-500.0,0.00032999,7]
[406306829,1771717833439,-500.0,0.00032999,7]
[406306830,1771717833448,-500.0,0.00032999,7]
[406306831,1771717833458,-500.0,0.00032999,7]
[406306832,1771717833468,-500.0,0.00032999,7]
[406306833,1771717833477,-312.18277736,0.00032999,7]
[406306834,1771717833486,-51495.18453571,0.00033,2]
[406306835,1771717833495,-26479.91670571,0.00033,2]
[406306836,1771717833505,-154.1700687,0.00033,2]
[406306837,1771717833514,-151.0,0.00033,31]
[406306838,1771717833524,-151.0,0.00033,31]
[406306839,1771717833533,-151.0,0.00033,31]
[406306840,1771717833542,-151.0,0.00033,31]
[406306841,1771717833552,-152.344841,0.00033,31]
[406306842,1771717833561,-151.0,0.00033,31]
[406306843,1771717833571,-151.0,0.00033,31]
[406306844,1771717833581,-168.0,0.00033006,2]
[406306845,1771717833590,-1879.32087,0.00033285,41]
[406306846,1771717833600,-487.0,0.00033285,2]
[406306847,1771717833610,-487.0,0.00033285,2]
[406306848,1771717833621,-487.0,0.00033285,2]
[406306849,1771717833631,-487.0,0.00033285,2]
[406306850,1771717833640,-487.0,0.00033285,2]
[406306851,1771717833650,-487.0,0.00033285,2]
[406306852,1771717833659,-487.0,0.00033285,2]
[406306853,1771717833669,-487.0,0.00033285,2]
[406306854,1771717833678,-487.0,0.00033285,2]
[406306855,1771717833688,-487.0,0.00033285,2]
[406306856,1771717833701,-487.0,0.00033285,2]
[406306857,1771717833711,-487.0,0.00033285,2]
[406306858,1771717833720,-487.0,0.00033285,2]
[406306859,1771717833729,-487.0,0.00033285,2]
[406306860,1771717833738,-487.0,0.00033285,2]
[406306861,1771717833748,-487.0,0.00033285,2]
[406306862,1771717833757,-487.0,0.00033285,2]
[406306863,1771717833766,-487.0,0.00033285,2]
[406306864,1771717833776,-487.0,0.00033285,2]
[406306865,1771717833785,-487.0,0.00033285,2]
[406306866,1771717833795,-487.0,0.00033285,2]
[406306867,1771717833804,-487.0,0.00033285,2]
[406306868,1771717833813,-487.0,0.00033285,2]
[406306869,1771717833822,-873.65,0.00033285,2]
[406306870,1771717833832,-1500.0,0.00033373,120]
[406306871,1771717833842,-151.0,0.000334,31]
[406306872,1771717833851,-151.0,0.000334,31]
[406306873,1771717833860,-153.178362,0.000334,31]
[406306874,1771717833869,-151.4934,0.000334,31]
[406306875,1771717833879,-151.0,0.000334,31]
[406306876,1771717833889,-151.0,0.000334,31]
[406306877,1771717833899,-151.0,0.000334,14]
[406306878,1771717833908,-151.0,0.0003346,31]
[406306879,1771717833918,-256.047177,0.0003346,31]
[406306880,1771717833927,-256.047177,0.0003346,31]
[406306881,1771717833936,-256.047177,0.0003346,31]
[406306882,1771717833946,-256.047177,0.0003346,31]
[406306883,1771717833955,-1879.32087,0.00033485,41]
[406306884,1771717833965,-179.55515701,0.00033495,2]
[406306885,1771717833978,-233.11431957,0.00033495,2]
[406306886,1771717833988,-721.12765534,0.00033495,2]
[406306887,1771717833997,-250.0,0.00033495,2]
[406306888,1771717834007,-250.0,0.00033495,2]
[406306889,1771717834017,-250.0,0.00033495,2]
[406306890,1771717834027,-190.87674669,0.00033495,2]
[406306891,1771717834037,-500.0,0.00033495,2]
[406306892,1771717834046,-500.0,0.00033495,2]
[406306893,1771717834056,-500.0,0.00033495,2]
[406306894,1771717834066,-500.0,0.00033495,2]
[406306895,1771717834076,-500.0,0.00033495,2]
[406306896,1771717834086,-500.0,0.00033495,2]
[406306897,1771717834096,-500.0,0.00033495,2]
[406306898,1771717834106,-500.0,0.00033495,2]
[406306899,1771717834115,-500.0,0.00033495,2]
[406306900,1771717834125,-500.0,0.00033495,2]
[406306901,1771717834134,-500.0,0.00033495,2]
[406306902,1771717834144,-693.3919763,0.00033495,2]
[406306903,1771717834154,-500.0,0.00033495,2]
[406306904,1771717834164,-500.0,0.00033495,2]
[406306905,1771717834174,-500.0,0.00033495,2]
[406306906,1771717834184,-500.0,0.00033495,2]
[406306907,1771717834193,-500.0,0.00033495,2]
[406306908,1771717834203,-500.0,0.00033495,2]
[406306909,1771717834212,-500.0,0.00033495,2]
[406306910,1771717834222,-500.0,0.00033495,2]
[406306911,1771717834231,-500.0,0.00033495,2]
[406306912,1771717834241,-500.0,0.00033495,2]
[406306913,1771717834250,-500.0,0.00033495,2]
[406306914,1771717834259,-351.470842,0.00033495,31]
[406306915,1771717834269,-351.470842,0.00033495,31]
[406306916,1771717834279,-351.470842,0.00033495,31]
[406306917,1771717834288,-351.470842,0.00033495,31]
[406306918,1771717834298,-151.0,0.00033495,31]
[406306919,1771717834307,-224.237696,0.00033495,31]
[406306920,1771717834317,-408.124875,0.00033495,31]
[406306921,1771717834327,-408.124875,0.00033495,31]
[406306922,1771717834337,-195.322531,0.00033495,7]
[406306923,1771717834346,-408.124875,0.00033495,31]
[406306924,1771717834356,-195.322531,0.00033495,7]
[406306925,1771717834366,-408.124875,0.00033495,31]
[406306926,1771717834375,-195.322531,0.00033495,7]
[406306927,1771717834386,-195.322531,0.00033495,7]
[406306928,1771717834395,-151.0,0.00033495,31]
[406306929,1771717834405,-1216.12967028,0.000335,2]
[406306930,1771717834414,-719.04747942,0.0003355,2]
[406306931,1771717834424,-166.66,0.00033554,30]
[406306932,1771717834434,-745.65223616,0.00033605,2]
[406306933,1771717834444,-263.72,0.00033609,2]
[406306934,1771717834453,-773.2413689,0.0003366,2]
[406306935,1771717834463,-1879.32087,0.00033685,41]
[406306936,1771717834472,-201.7,0.00033687,13]
[406306937,1771717834482,-201.69,0.00033687,13]
[406306938,1771717834491,-739.0,0.00033694,2]
[406306939,1771717834501,-801.85129955,0.00033715,2]
[406306940,1771717834510,-168.0,0.00033744,2]
[406306941,1771717834520,-831.51979763,0.0003377,2]
[406306942,1771717834530,-168.0,0.0003379,2]
[406306943,1771717834540,-222.44693,0.0003379,31]
[406306944,1771717834549,-222.44693,0.0003379,31]
[406306945,1771717834558,-222.44693,0.0003379,31]
[406306946,1771717834567,-222.44693,0.0003379,31]
[406306947,1771717834577,-298.076962,0.0003379,31]
[406306948,1771717834586,-298.076962,0.0003379,31]
[406306949,1771717834596,-298.076962,0.0003379,31]
[406306950,1771717834605,-298.076962,0.0003379,31]
[406306951,1771717834614,-151.0,0.0003379,28]
[406306952,1771717834624,-862.28603014,0.00033825,2]
[406306953,1771717834634,-1000.0,0.0003387,2]
[406306954,1771717834644,-894.19061326,0.0003388,2]
[406306955,1771717834653,-1879.32087,0.00033885,41]
[406306956,1771717834663,-168.0,0.00033916,2]
[406306957,1771717834672,-927.27566595,0.00033935,2]
[406306958,1771717834682,-226.57118396,0.00033939,60]
[406306959,1771717834693,-151.0,0.00033953,31]
[406306960,1771717834704,-151.0,0.00033953,31]
[406306961,1771717834714,-151.0,0.00033953,31]
[406306962,1771717834723,-151.0,0.00033953,31]
[406306963,1771717834733,-151.0,0.00033953,31]
[406306964,1771717834742,-151.0,0.00033953,31]
[406306965,1771717834752,-151.0,0.00033953,31]
[406306966,1771717834761,-151.0,0.00033953,31]
[406306967,1771717834772,-151.0,0.00033953,31]
[406306968,1771717834781,-245.5288,0.00033953,31]
[406306969,1771717834791,-151.0,0.00033961,31]
[406306970,1771717834801,-151.0,0.00033961,31]
[406306971,1771717834810,-151.0,0.00033961,31]
[406306972,1771717834820,-500.0,0.00033961,2]
[406306973,1771717834830,-500.0,0.00033961,2]
[406306974,1771717834839,-500.0,0.00033961,2]
[406306975,1771717834849,-961.58486559,0.0003399,2]
[406306976,1771717834860,-166.66,0.00034013,2]
[406306977,1771717834870,-168.0,0.00034028,7]
[406306978,1771717834880,-997.16350561,0.00034045,2]
[406306979,1771717834890,-168.0,0.00034047,2]
[406306980,1771717834901,-1879.32087,0.00034085,41]
[406306981,1771717834911,-500.0,0.00034173,2]
[406306982,1771717834920,-500.0,0.00034173,2]
[406306983,1771717834930,-500.0,0.00034173,2]
[406306984,1771717834939,-372.10875522,0.00034173,2]
[406306985,1771717834949,-1879.32087,0.00034285,41]
[406306986,1771717834959,-168.0,0.00034484,2]
[406306987,1771717834969,-1738.06005729,0.0003449,2]
[406306988,1771717834979,-151.36319148,0.00034678,2]
[406306989,1771717834989,-1833.0,0.00034794,5]
[406306990,1771717834999,-1500.0,0.00034795,2]
[406306991,1771717835009,-168.0,0.00034889,2]
[406306992,1771717835018,-2000.0,0.000349,2]
[406306993,1771717835028,-1139.86969862,0.0003492,2]
[406306994,1771717835038,-1924.82628087,0.00035,2]
[406306995,1771717835048,-802.89715971,0.00035,2]
[406306996,1771717835058,-250.0,0.00035,10]
[406306997,1771717835068,-151.0,0.00035042,31]
[406306998,1771717835078,-256.047177,0.00035042,31]
[406306999,1771717835087,-256.047177,0.00035042,31]
[406307000,1771717835097,-256.047177,0.00035042,31]
[406307001,1771717835107,-256.047177,0.00035042,31]
[406307002,1771717835116,-151.0,0.00035042,31]
[406307003,1771717835292,-151.0,0.00035042,31]
[406307004,1771717835301,-1000.0,0.00035049,2]
[406307005,1771717835311,-1000.0,0.00035049,2]
[406307006,1771717835320,-1000.0,0.00035049,2]
[406307007,1771717835330,-1000.0,0.00035049,2]
[406307008,1771717835339,-1000.0,0.00035049,2]
[406307009,1771717835349,-201.7,0.00035057,13]
[406307010,1771717835358,-201.69,0.00035057,13]
[406307011,1771717835367,-168.0,0.0003508,2]
[406307012,1771717835377,-245.93,0.00035085,2]
[406307013,1771717835387,-151.0,0.000351,31]
[406307014,1771717835397,-151.0,0.000351,31]
[406307015,1771717835406,-151.0,0.000351,14]
[406307016,1771717835416,-222.44693,0.000351,31]
[406307017,1771717835426,-222.44693,0.000351,31]
[406307018,1771717835436,-222.44693,0.000351,31]
[406307019,1771717835446,-222.44693,0.000351,31]
[406307020,1771717835456,-298.076962,0.000351,31]
[406307021,1771717835465,-298.076962,0.000351,31]
[406307022,1771717835474,-298.076962,0.000351,31]
[406307023,1771717835484,-298.076962,0.000351,31]
[406307024,1771717835494,-151.0,0.000351,28]
[406307025,1771717835503,-166.66,0.000351,2]
[406307026,1771717835512,-168.0,0.00035175,2]
[406307027,1771717835521,-739.0,0.00035271,2]
[406307028,1771717835531,-152.23086807,0.000354,2]
[406307029,1771717835540,-168.0,0.00035485,2]
[406307030,1771717835550,-53847.72,0.000355,120]
[406307031,1771717835560,-151.0,0.000355,31]
[406307032,1771717835570,-151.0,0.000355,31]
[406307033,1771717835579,-155.88446,0.000355,31]
[406307034,1771717835588,-212.163245,0.000355,31]
[406307035,1771717835598,-151.0,0.000355,31]
[406307036,1771717835608,-151.0,0.000355,31]
[406307037,1771717835618,-151.0,0.000355,31]
[406307038,1771717835628,-151.0,0.000355,31]
[406307039,1771717835637,-256.047177,0.000355,31]
[406307040,1771717835647,-256.047177,0.000355,31]
[406307041,1771717835656,-256.047177,0.000355,31]
[406307042,1771717835665,-256.047177,0.000355,31]
[406307043,1771717835674,-151.0,0.000355,31]
[406307044,1771717835684,-160.949988,0.000355,31]
[406307045,1771717835694,-151.0,0.000355,31]
[406307046,1771717835703,-151.0,0.000355,31]
[406307047,1771717835713,-206.275378,0.000355,14]
[406307048,1771717835723,-151.0,0.000355,31]
[406307049,1771717835732,-151.0,0.000355,31]
[406307050,1771717835743,-151.0,0.000355,31]
[406307051,1771717835754,-151.0,0.000355,31]
[406307052,1771717835763,-151.0,0.000355,31]
[406307053,1771717835771,-222.44693,0.000355,31]
[406307054,1771717835781,-222.44693,0.000355,31]
[406307055,1771717835791,-151.0,0.000355,31]
[406307056,1771717835800,-222.44693,0.000355,31]
[406307057,1771717835810,-222.44693,0.000355,31]
[406307058,1771717835819,-298.076962,0.000355,31]
[406307059,1771717835830,-298.076962,0.000355,31]
[406307060,1771717835840,-298.076962,0.000355,31]
[406307061,1771717835850,-298.076962,0.000355,31]
[406307062,1771717835859,-151.0,0.000355,28]
[406307063,1771717835867,-351.470842,0.000355,31]
[406307064,1771717835876,-351.470842,0.000355,31]
[406307065,1771717835886,-351.470842,0.000355,31]
[406307066,1771717835895,-351.470842,0.000355,31]
[406307067,1771717835904,-151.0,0.000355,31]
[406307068,1771717835913,-408.124875,0.000355,31]
[406307069,1771717835922,-408.124875,0.000355,31]
[406307070,1771717835931,-195.322531,0.000355,7]
[406307071,1771717835940,-408.124875,0.000355,31]
[406307072,1771717835950,-195.322531,0.000355,7]
[406307073,1771717835959,-408.124875,0.000355,31]
[406307074,1771717835968,-195.322531,0.000355,7]
[406307075,1771717835978,-195.322531,0.000355,7]
[406307076,1771717835987,-151.0,0.000355,31]
[406307077,1771717835996,-168.0,0.00035502,2]
[406307078,1771717836006,-485.16130642,0.00035516,2]
[406307079,1771717836015,-168.0,0.00035559,7]
[406307080,1771717836024,-233.95598063,0.00035589,120]
[406307081,1771717836033,-23738.61759313,0.0003561,2]
[406307082,1771717836043,-151.0,0.00035616,31]
[406307083,1771717836052,-5000.0,0.000359,2]
[406307084,1771717836061,-111998.62090018,0.00036,2]
[406307085,1771717836070,-150.0,0.00036,13]
[406307086,1771717836080,-3934.80331372,0.00036,2]
[406307087,1771717836089,-151.0,0.00036,31]
[406307088,1771717836099,-151.0,0.00036,31]
[406307089,1771717836108,-151.0,0.00036,31]
[406307090,1771717836117,-256.047177,0.00036,31]
[406307091,1771717836127,-256.047177,0.00036,31]
[406307092,1771717836136,-256.047177,0.00036,31]
[406307093,1771717836147,-256.047177,0.00036,31]
[406307094,1771717836156,-151.0,0.00036,31]
[406307095,1771717836165,-151.0,0.00036,31]
[406307096,1771717836175,-151.0,0.00036,31]
[406307097,1771717836184,-151.0,0.00036,31]
[406307098,1771717836193,-151.0,0.00036,31]
[406307099,1771717836203,-151.0,0.00036,31]
[406307100,1771717836212,-151.0,0.00036,31]
[406307101,1771717836221,-225.045168,0.00036,31]
[406307102,1771717836230,-222.44693,0.00036,31]
[406307103,1771717836240,-222.44693,0.00036,31]
[406307104,1771717836249,-151.0,0.00036,31]
[406307105,1771717836259,-222.44693,0.00036,31]
[406307106,1771717836269,-222.44693,0.00036,31]
[406307107,1771717836279,-298.076962,0.00036,31]
[406307108,1771717836288,-298.076962,0.00036,31]
[406307109,1771717836298,-298.076962,0.00036,31]
[406307110,1771717836309,-298.076962,0.00036,31]
[406307111,1771717836319,-151.0,0.00036,28]
[406307112,1771717836329,-351.470842,0.00036,31]
[406307113,1771717836339,-351.470842,0.00036,31]
[406307114,1771717836350,-351.470842,0.00036,31]
[406307115,1771717836360,-351.470842,0.00036,31]
[406307116,1771717836370,-151.0,0.00036,31]
[406307117,1771717836380,-408.124875,0.00036,31]
[406307118,1771717836389,-408.124875,0.00036,31]
[406307119,1771717836398,-195.322531,0.00036,7]
[406307120,1771717836408,-408.124875,0.00036,31]
[406307121,1771717836417,-195.322531,0.00036,7]
[406307122,1771717836427,-408.124875,0.00036,31]
[406307123,1771717836437,-195.322531,0.00036,7]
[406307124,1771717836447,-195.322531,0.00036,7]
[406307125,1771717836456,-151.0,0.00036,31]
[406307126,1771717836465,-1863.455403,0.0003608,60]
[406307127,1771717836474,-379.0,0.0003611,30]